fUSD/lending_fUSD_20250530
["ID","MTS","AMOUNT","RATE_DAILY","PERIOD"]
[363097098,1748575842424,-420.0,0.00021917,2]
[363097099,1748575842435,-1308.76,0.00021917,2]
[363097101,1748575842444,-420.0,0.00021917,2]
[363097104,1748575842454,-420.0,0.00021917,2]
[363097105,1748575842463,-420.0,0.00021917,2]
[363097107,1748575842473,-1776.1,0.00021917,2]
[363097109,1748575842482,-1197.24,0.00021917,2]
[363097112,1748575842493,-420.0,0.00021917,2]
[363097114,1748575842502,-890.86,0.00021917,2]
[363097116,1748575842512,-423.72624046,0.00021917,2]
[363097118,1748575842521,-420.0,0.00021917,2]
[363097120,1748575842531,-489.63,0.00021917,2]
[363097122,1748575842540,-420.0,0.00021917,2]
[363097124,1748575842550,-566.77,0.00021917,2]
[363097126,1748575842559,-767.18,0.00021917,2]
[363097128,1748575842568,-420.0,0.00021917,2]
[363097130,1748575842579,-420.0,0.00021917,2]
[363097132,1748575842588,-420.0,0.00021917,2]
[363097134,1748575842598,-672.69,0.00021917,2]
[363097136,1748575842607,-729.65,0.00021917,2]
[363097138,1748575842616,-420.0,0.00021917,2]
[363097140,1748575842628,-476.84,0.00021917,2]
[363097142,1748575842637,-658.44,0.00021917,2]
[363097144,1748575842647,-1173.57,0.00021917,2]
[363097146,1748575842657,-1401.41,0.00021917,2]
[363097148,1748575842667,-420.0,0.00021917,2]
[363097150,1748575842676,-420.0,0.00021917,2]
[363097152,1748575842686,-568.1,0.00021917,2]
[363097154,1748575842695,-420.0,0.00021917,2]
[363097156,1748575842705,-420.0,0.00021917,2]
[363097158,1748575842715,-953.27,0.00021917,2]
[363097160,1748575842725,-420.0,0.00021917,2]
[363097163,1748575842735,-1251.51,0.00021917,2]
[363097165,1748575842745,-420.0,0.00021917,2]
[363097167,1748575842755,-870.06,0.00021917,2]
[363097169,1748575842764,-420.0,0.00021917,2]
[363097171,1748575842774,-738.51,0.00021917,2]
[363097173,1748575842783,-581.35,0.00021917,2]
[363097175,1748575842793,-420.0,0.00021917,2]
[363097177,1748575842811,-303.11110677,0.00021917,2]
[363097179,1748575842820,-766.78,0.00021917,2]
[363097181,1748575842830,-423.82130491,0.00021917,2]
[363097183,1748575842840,-938.04,0.00021917,2]
[363097185,1748575842850,-1304.83,0.00021917,2]
[363097187,1748575842860,-726.11,0.00021917,2]
[363097189,1748575842869,-907.83,0.00021917,2]
[363097191,1748575842882,-420.0,0.00021917,2]
[363097193,1748575842891,-1669.31,0.00021917,2]
[363097195,1748575842901,-420.0,0.00021917,2]
[363097197,1748575842911,-1397.11,0.00021917,2]
[363097199,1748575842921,-863.76,0.00021917,2]
[363097201,1748575842931,-178.44810261,0.00021917,2]
[363097203,1748575842940,-809.81,0.00021917,2]
[363097205,1748575842950,-420.0,0.00021917,2]
[363097207,1748575842959,-713.18,0.00021917,2]
[363097210,1748575842969,-1075.01,0.00021917,2]
[363097212,1748575842978,-735.26,0.00021917,2]
[363097215,1748575842988,-538.57,0.00021917,2]
[363097219,1748575842997,-420.0,0.00021917,2]
[363097222,1748575843007,-648.41,0.00021917,2]
[363097224,1748575843016,-510.92,0.00021917,2]
[363097226,1748575843025,-1579.32,0.00021917,2]
[363097228,1748575843035,-561.28,0.00021917,2]
[363097230,1748575843045,-1489.8,0.00021917,2]
[363097232,1748575843055,-752.66,0.00021917,2]
[363097234,1748575843064,-569.66,0.00021917,2]
[363097236,1748575843073,-546.87,0.00021917,2]
[363097238,1748575843083,-420.0,0.00021917,2]
[363097241,1748575843092,-1178.03,0.00021917,2]
[363097244,1748575843101,-1213.72,0.00021917,2]
[363097246,1748575843110,-420.0,0.00021917,2]
[363097248,1748575843119,-420.0,0.00021917,2]
[363097250,1748575843130,-450.62,0.00021917,2]
[363097252,1748575843139,-549.91,0.00021917,2]
[363097254,1748575843148,-458.25,0.00021917,2]
[363097256,1748575843158,-786.41,0.00021917,2]
[363097258,1748575843167,-420.0,0.00021917,2]
[363097260,1748575843176,-1442.22,0.00021917,2]
[363097262,1748575843186,-420.0,0.00021917,2]
[363097264,1748575843197,-420.0,0.00021917,2]
[363097266,1748575843206,-987.74,0.00021917,2]
[363097269,1748575843216,-556.24,0.00021917,2]
[363097271,1748575843225,-420.0,0.00021917,2]
[363097273,1748575843234,-420.0,0.00021917,2]
[363097275,1748575843243,-1002.08,0.00021917,2]
[363097276,1748575843252,-1777.1,0.00021917,2]
[363097278,1748575843262,-581.44,0.00021917,2]
[363097281,1748575843271,-503.38,0.00021917,2]
[363097283,1748575843281,-420.0,0.00021917,2]
[363097285,1748575843290,-420.0,0.00021917,2]
[363097287,1748575843299,-420.0,0.00021917,2]
[363097289,1748575843308,-296.60577493,0.00021917,2]
[363097291,1748575843318,-420.0,0.00021917,2]
[363097293,1748575843328,-504.91,0.00021917,2]
[363097295,1748575843338,-1440.33,0.00021917,2]
[363097297,1748575843347,-1216.16,0.00021917,2]
[363097299,1748575843356,-1610.96,0.00021917,2]
[363097302,1748575843365,-420.0,0.00021917,2]
[363097305,1748575843375,-1235.56,0.00021917,2]
[363097307,1748575843384,-275.77848789,0.00021917,2]
[363097310,1748575843393,-1251.44,0.00021917,2]
[363097312,1748575843403,-822.83,0.00021917,2]
[363097314,1748575843412,-568.96,0.00021917,2]
[363097316,1748575843421,-587.05,0.00021917,2]
[363097318,1748575843431,-420.0,0.00021917,2]
[363097320,1748575843440,-536.12,0.00021917,2]
[363097322,1748575843450,-420.0,0.00021917,2]
[363097324,1748575843459,-1563.31,0.00021917,2]
[363097326,1748575843469,-410.51240548,0.00021917,2]
[363097328,1748575843478,-485.45,0.00021917,2]
[363097330,1748575843488,-420.0,0.00021917,2]
[363097332,1748575843497,-1589.32,0.00021917,2]
[363097334,1748575843506,-1029.0,0.00021917,2]
[363097335,1748575843515,-584.22,0.00021917,2]
[363097336,1748575843525,-420.0,0.00021917,2]
[363097337,1748575843535,-1330.0,0.00021917,2]
[363097338,1748575843545,-420.0,0.00021917,2]
[363097339,1748575843555,-420.0,0.00021917,2]
[363097340,1748575843564,-861.43,0.00021917,2]
[363097341,1748575843574,-2659.61,0.00021917,2]
[363097342,1748575843583,-420.0,0.00021917,2]
[363097344,1748575843593,-1082.61,0.00021917,2]
[363097345,1748575843602,-420.0,0.00021917,2]
[363097346,1748575843612,-420.0,0.00021917,2]
[363097348,1748575843622,-420.0,0.00021917,2]
[363097350,1748575843632,-420.0,0.00021917,2]
[363097352,1748575843642,-1554.14,0.00021917,2]
[363097354,1748575843652,-420.0,0.00021917,2]
[363097356,1748575843661,-546.48,0.00021917,2]
[363097358,1748575843671,-518.89,0.00021917,2]
[363097360,1748575843680,-2047.08,0.00021917,2]
[363097362,1748575843690,-420.0,0.00021917,2]
[363097364,1748575843702,-1253.18,0.00021917,2]
[363097366,1748575843713,-450.2,0.00021917,2]
[363097368,1748575843725,-420.0,0.00021917,2]
[363097370,1748575843735,-420.0,0.00021917,2]
[363097372,1748575843744,-817.82,0.00021917,2]
[363097374,1748575843755,-623.85,0.00021917,2]
[363097376,1748575843764,-1103.69,0.00021917,2]
[363097378,1748575843775,-420.0,0.00021917,2]
[363097380,1748575843788,-1009.96,0.00021917,2]
[363097382,1748575843798,-510.95,0.00021917,2]
[363097384,1748575843809,-543.61038242,0.00021917,2]
[363097386,1748575843820,-675.34,0.00021917,2]
[363097388,1748575843830,-562.46,0.00021917,2]
[363097390,1748575843839,-475.68,0.00021917,2]
[363097392,1748575843848,-420.0,0.00021917,2]
[363097394,1748575843857,-444.52,0.00021917,2]
[363097396,1748575843867,-420.0,0.00021917,2]
[363097398,1748575843879,-589.84,0.00021917,2]
[363097400,1748575843888,-420.0,0.00021917,2]
[363097402,1748575843898,-420.0,0.00021917,2]
[363097404,1748575843907,-422.6094119,0.00021917,2]
[363097415,1748575843986,-1135.83,0.00021917,2]
[363097417,1748575843995,-445.3,0.00021917,2]
[363097419,1748575844004,-420.0,0.00021917,2]
[363097421,1748575844013,-631.33,0.00021917,2]
[363097423,1748575844022,-981.98,0.00021917,2]
[363097425,1748575844031,-1402.67,0.00021917,2]
[363097427,1748575844040,-183.54188445,0.00021917,2]
[363097429,1748575844049,-545.09,0.00021917,2]
[363097431,1748575844059,-420.0,0.00021917,2]
[363097433,1748575844068,-420.0,0.00021917,2]
[363097435,1748575844077,-420.0,0.00021917,2]
[363097437,1748575844086,-841.57,0.00021917,2]
[363097439,1748575844095,-500.0,0.00021917,2]
[363097441,1748575844104,-968.15,0.00021917,2]
[363097443,1748575844113,-420.0,0.00021917,2]
[363097445,1748575844123,-420.0,0.00021917,2]
[363097447,1748575844133,-563.23,0.00021917,2]
[363097449,1748575844143,-420.0,0.00021917,2]
[363097451,1748575844152,-420.0,0.00021917,2]
[363097453,1748575844162,-420.0,0.00021917,2]
[363097455,1748575844171,-420.0,0.00021917,2]
[363097457,1748575844180,-484.18,0.00021917,2]
[363097459,1748575844189,-420.0,0.00021917,2]
[363097461,1748575844198,-990.2,0.00021917,2]
[363097463,1748575844207,-615.32,0.00021917,2]
[363097465,1748575844216,-612.76,0.00021917,2]
[363097467,1748575844225,-811.59,0.00021917,2]
[363097469,1748575844234,-420.0,0.00021917,2]
[363097471,1748575844243,-519.34,0.00021917,2]
[363097473,1748575844252,-768.13,0.00021917,2]
[363097475,1748575844261,-843.04,0.00021917,2]
[363097477,1748575844270,-660.51,0.00021917,2]
[363097479,1748575844281,-1079.09,0.00021917,2]
[363097481,1748575844290,-420.0,0.00021917,2]
[363097483,1748575844299,-677.9,0.00021917,2]
[363097485,1748575844308,-508.76,0.00021917,2]
[363097487,1748575844317,-625.21,0.00021917,2]
[363097489,1748575844326,-153.8842155,0.00021917,2]
[363097491,1748575844335,-1382.75,0.00021917,2]
[363097493,1748575844344,-652.79,0.00021917,2]
[363097495,1748575844353,-420.0,0.00021917,2]
[363097497,1748575844363,-420.0,0.00021917,2]
[363097499,1748575844372,-420.0,0.00021917,2]
[363097501,1748575844381,-1090.95,0.00021917,2]
[363097503,1748575844390,-420.0,0.00021917,2]
[363097505,1748575844399,-420.0,0.00021917,2]
[363097507,1748575844408,-510.97,0.00021917,2]
[363097509,1748575844417,-1852.11,0.00021917,2]
[363097511,1748575844426,-420.0,0.00021917,2]
[363097513,1748575844435,-420.0,0.00021917,2]
[363097515,1748575844444,-758.49,0.00021917,2]
[363097517,1748575844454,-822.76,0.00021917,2]
[363097519,1748575844463,-307.01452269,0.00021917,2]
[363097521,1748575844472,-500.0,0.00021917,2]
[363097523,1748575844482,-420.0,0.00021917,2]
[363097525,1748575844491,-574.06,0.00021917,2]
[363097527,1748575844501,-480.03,0.00021917,2]
[363097529,1748575844510,-420.0,0.00021917,2]
[363097531,1748575844519,-749.33,0.00021917,2]
[363097533,1748575844529,-433.04,0.00021917,2]
[363097535,1748575844538,-456.66,0.00021917,2]
[363097537,1748575844547,-1360.25,0.00021917,2]
[363097539,1748575844557,-2595.3,0.00021917,2]
[363097541,1748575844567,-1456.46,0.00021917,2]
[363097543,1748575844577,-1211.06,0.00021917,2]
[363097545,1748575844586,-420.0,0.00021917,2]
[363097547,1748575844596,-424.82,0.00021917,2]
[363097549,1748575844605,-500.0,0.00021917,2]
[363097551,1748575844614,-500.0,0.00021917,2]
[363097553,1748575844623,-6035.8,0.00021917,2]
[363097555,1748575844632,-801.94,0.00021917,2]
[363097557,1748575844641,-1063.1,0.00021917,2]
[363097559,1748575844651,-494.84,0.00021917,2]
[363097561,1748575844660,-35239.13,0.00021917,2]
[363097563,1748575844669,-420.0,0.00021917,2]
[363097565,1748575844678,-420.0,0.00021917,2]
[363097567,1748575844687,-420.0,0.00021917,2]
[363097569,1748575844696,-420.0,0.00021917,2]
[363097571,1748575844705,-827.76,0.00021917,2]
[363097573,1748575844714,-424.93012342,0.00021917,2]
[363097575,1748575844723,-2762.81,0.00021917,2]
[363097577,1748575844733,-420.0,0.00021917,2]
[363097579,1748575844742,-420.0,0.00021917,2]
[363097581,1748575844751,-1024.68,0.00021917,2]
[363097583,1748575844760,-514.55,0.00021917,2]
[363097585,1748575844769,-2423.94,0.00021917,2]
[363097587,1748575844779,-9460.76,0.00021917,2]
[363097589,1748575844787,-420.0,0.00021917,2]
[363097591,1748575844796,-1230.45,0.00021917,2]
[363097593,1748575844805,-420.0,0.00021917,2]
[363097595,1748575844815,-420.0,0.00021917,2]
[363097597,1748575844824,-2215.08,0.00021917,2]
[363097599,1748575844833,-420.0,0.00021917,2]
[363097601,1748575844842,-277.52366017,0.00021917,2]
[363097603,1748575844851,-420.0,0.00021917,2]
[363097605,1748575844860,-1651.88,0.00021917,2]
[363097607,1748575844869,-583.86,0.00021917,2]
[363097609,1748575844883,-1096.55,0.00021917,2]
[363097611,1748575844891,-1380.03,0.00021917,2]
[363097613,1748575844900,-587.73,0.00021917,2]
[363097615,1748575844910,-420.0,0.00021917,2]
[363097617,1748575844919,-648.98,0.00021917,2]
[363097619,1748575844929,-553.76565485,0.00021917,2]
[363097621,1748575844938,-3518.82,0.00021917,2]
[363097623,1748575844947,-868.41,0.00021917,2]
[363097625,1748575844956,-1883.89,0.00021917,2]
[363097627,1748575844964,-420.0,0.00021917,2]
[363097628,1748575844974,-1184.22,0.00021917,2]
[363097631,1748575844984,-1454.45,0.00021917,2]
[363097633,1748575844993,-686.15,0.00021917,2]
[363097635,1748575845002,-549.99,0.00021917,2]
[363097637,1748575845011,-633.07,0.00021917,2]
[363097639,1748575845020,-547.84,0.00021917,2]
[363097641,1748575845029,-1007.91,0.00021917,2]
[363097643,1748575845039,-1562.74,0.00021917,2]
[363097645,1748575845048,-3595.61,0.00021917,2]
[363097647,1748575845058,-420.0,0.00021917,2]
[363097649,1748575845067,-420.0,0.00021917,2]
[363097651,1748575845076,-420.0,0.00021917,2]
[363097653,1748575845085,-420.0,0.00021917,2]
[363097655,1748575845096,-1212.94,0.00021917,2]
[363097657,1748575845105,-420.0,0.00021917,2]
[363097659,1748575845114,-3306.42,0.00021917,2]
[363097661,1748575845125,-420.0,0.00021917,2]
[363097663,1748575845135,-420.0,0.00021917,2]
[363097665,1748575845145,-883.0,0.00021917,2]
[363097667,1748575845154,-420.0,0.00021917,2]
[363097669,1748575845163,-476.16,0.00021917,2]
[363097671,1748575845173,-420.0,0.00021917,2]
[363097673,1748575845182,-682.76,0.00021917,2]
[363097675,1748575845191,-7706.76,0.00021917,2]
[363097677,1748575845200,-2215.94,0.00021917,2]
[363097679,1748575845210,-302.83464355,0.00021917,2]
[363097681,1748575845219,-444.62,0.00021917,2]
[363097683,1748575845228,-481.85338569,0.00021917,2]
[363097685,1748575845238,-1620.61,0.00021917,2]
[363097687,1748575845247,-461.74,0.00021917,2]
[363097689,1748575845256,-420.0,0.00021917,2]
[363097691,1748575845265,-500.0,0.00021917,2]
[363097693,1748575845275,-500.0,0.00021917,2]
[363097695,1748575845284,-500.0,0.00021917,2]
[363097697,1748575845293,-500.0,0.00021917,2]
[363097699,1748575845302,-1570.84,0.00021917,2]
[363097701,1748575845311,-9623.09,0.00021917,2]
[363097703,1748575845320,-880.01,0.00021917,2]
[363097705,1748575845330,-420.0,0.00021917,2]
[363097707,1748575845339,-420.0,0.00021917,2]
[363097709,1748575845348,-711.99,0.00021917,2]
[363097711,1748575845357,-510.79,0.00021917,2]
[363097713,1748575845366,-1598.11,0.00021917,2]
[363097715,1748575845376,-420.0,0.00021917,2]
[363097717,1748575845384,-8313.1,0.00021917,2]
[363097719,1748575845393,-420.0,0.00021917,2]
[363097721,1748575845402,-548.15,0.00021917,2]
[363097722,1748575845411,-420.0,0.00021917,2]
[363097723,1748575845421,-420.0,0.00021917,2]
[363097724,1748575845430,-12212.53,0.00021917,2]
[363097725,1748575845439,-1427.02,0.00021917,2]
[363097726,1748575845448,-1936.31,0.00021917,2]
[363097727,1748575845457,-958.58,0.00021917,2]
[363097728,1748575845466,-1710.26,0.00021917,2]
[363097729,1748575845475,-1311.92,0.00021917,2]
[363097730,1748575845485,-880.52,0.00021917,2]
[363097731,1748575845494,-1814.08,0.00021917,2]
[363097733,1748575845503,-1180.22,0.00021917,2]
[363097735,1748575845513,-4337.63,0.00021917,2]
[363097737,1748575845522,-581.36,0.00021917,2]
[363097739,1748575845531,-420.0,0.00021917,2]
[363097741,1748575845540,-799.43,0.00021917,2]
[363097743,1748575845550,-472.34,0.00021917,2]
[363097745,1748575845559,-1488.87,0.00021917,2]
[363097747,1748575845568,-476.19,0.00021917,2]
[363097749,1748575845578,-11380.74,0.00021917,2]
[363097751,1748575845587,-813.58,0.00021917,2]
[363097753,1748575845596,-646.3,0.00021917,2]
[363097755,1748575845605,-1367.13,0.00021917,2]
[363097757,1748575845615,-1842.82,0.00021917,2]
[363097759,1748575845626,-5492.34,0.00021917,2]
[363097761,1748575845635,-1227.12,0.00021917,2]
[363097763,1748575845645,-420.0,0.00021917,2]
[363097765,1748575845655,-532.53,0.00021917,2]
[363097767,1748575845664,-2613.64,0.00021917,2]
[363097769,1748575845673,-420.0,0.00021917,2]
[363097771,1748575845682,-835.29,0.00021917,2]
[363097773,1748575845691,-2268.87,0.00021917,2]
[363097775,1748575845701,-4531.6,0.00021917,2]
[363097777,1748575845710,-420.0,0.00021917,2]
[363097780,1748575845719,-420.0,0.00021917,2]
[363097782,1748575845729,-23798.55,0.00021917,2]
[363097784,1748575845738,-1537.6,0.00021917,2]
[363097785,1748575845748,-1449.43,0.00021917,2]
[363097788,1748575845758,-420.0,0.00021917,2]
[363097790,1748575845767,-665.6,0.00021917,2]
[363097792,1748575845776,-1080.55,0.00021917,2]
[363097794,1748575845785,-420.0,0.00021917,2]
[363097795,1748575845794,-845.88,0.00021917,2]
[363097797,1748575845804,-4300.91,0.00021917,2]
[363097799,1748575845813,-1576.4,0.00021917,2]
[363097802,1748575845822,-2979.16,0.00021917,2]
[363097804,1748575845831,-1598.59,0.00021917,2]
[363097806,1748575845840,-1176.75,0.00021917,2]
[363097808,1748575845849,-1225.1,0.00021917,2]
[363097809,1748575845858,-420.0,0.00021917,2]
[363097812,1748575845868,-12703.81,0.00021917,2]
[363097814,1748575845880,-429.41,0.00021917,2]
[363097816,1748575845888,-420.0,0.00021917,2]
[363097817,1748575845897,-1574.67,0.00021917,2]
[363097819,1748575845906,-420.0,0.00021917,2]
[363097821,1748575845916,-718.8,0.00021917,2]
[363097824,1748575845926,-420.0,0.00021917,2]
[363097826,1748575845935,-970.6,0.00021917,2]
[363097828,1748575845944,-1498.91,0.00021917,2]
[363097830,1748575845954,-747.79,0.00021917,2]
[363097832,1748575845964,-332.19930091,0.00021917,2]
[363097834,1748575845973,-620.51,0.00021917,2]
[363097836,1748575845983,-6927.34,0.00021917,2]
[363097838,1748575845992,-721.96,0.00021917,2]
[363097840,1748575846002,-420.0,0.00021917,2]
[363097842,1748575846011,-885.37,0.00021917,2]
[363097844,1748575846020,-1975.27,0.00021917,2]
[363097846,1748575846030,-3305.89,0.00021917,2]
[363097848,1748575846039,-3335.47,0.00021917,2]
[363097850,1748575846049,-1450.2,0.00021917,2]
[363097852,1748575846058,-1332.44,0.00021917,2]
[363097854,1748575846067,-605.38,0.00021917,2]
[363097856,1748575846077,-2629.12,0.00021917,2]
[363097858,1748575846087,-420.0,0.00021917,2]
[363097860,1748575846097,-877.29,0.00021917,2]
[363097862,1748575846106,-4831.33,0.00021917,2]
[363097864,1748575846116,-7414.42,0.00021917,2]
[363097866,1748575846126,-1662.65,0.00021917,2]
[363097869,1748575846135,-719.19,0.00021917,2]
[363097871,1748575846144,-420.0,0.00021917,2]
[363097873,1748575846154,-749.81,0.00021917,2]
[363097875,1748575846163,-1683.66,0.00021917,2]
[363097878,1748575846173,-615.58,0.00021917,2]
[363097881,1748575846182,-729.24,0.00021917,2]
[363097884,1748575846192,-420.0,0.00021917,2]
[363097886,1748575846201,-951.01,0.00021917,2]
[363097888,1748575846211,-945.82,0.00021917,2]
[363097890,1748575846220,-1890.11,0.00021917,2]
[363097892,1748575846229,-876.06,0.00021917,2]
[363097894,1748575846238,-1225.5,0.00021917,2]
[363097896,1748575846247,-4376.03,0.00021917,2]
[363097898,1748575846257,-420.0,0.00021917,2]
[363097900,1748575846267,-420.0,0.00021917,2]
[363097902,1748575846276,-420.0,0.00021917,2]
[363097904,1748575846287,-553.52,0.00021917,2]
[363097906,1748575846297,-420.0,0.00021917,2]
[363097908,1748575846307,-1749.13,0.00021917,2]
[363097910,1748575846317,-1137.48,0.00021917,2]
[363097912,1748575846327,-420.0,0.00021917,2]
[363097914,1748575846336,-791.32,0.00021917,2]
[363097916,1748575846345,-524.95605246,0.00021917,2]
[363097918,1748575846355,-3971.88,0.00021917,2]
[363097920,1748575846364,-1186.07,0.00021917,2]
[363097922,1748575846373,-420.0,0.00021917,2]
[363097924,1748575846383,-1859.5,0.00021917,2]
[363097926,1748575846393,-715.06,0.00021917,2]
[363097929,1748575846403,-589.89,0.00021917,2]
[363097931,1748575846412,-3025.87,0.00021917,2]
[363097933,1748575846421,-755.85,0.00021917,2]
[363097935,1748575846431,-693.91,0.00021917,2]
[363097937,1748575846440,-1393.1,0.00021917,2]
[363097939,1748575846450,-420.0,0.00021917,2]
[363097941,1748575846459,-3583.43,0.00021917,2]
[363097943,1748575846469,-2978.24,0.00021917,2]
[363097945,1748575846478,-1197.44,0.00021917,2]
[363097947,1748575846488,-211.13031521,0.00021917,2]
[363097949,1748575846497,-320.30081479,0.00021917,2]
[363097951,1748575846507,-425.68121883,0.00021917,2]
[363097953,1748575846516,-420.0,0.00021917,2]
[363097955,1748575846525,-456.23,0.00021917,2]
[363097957,1748575846535,-1927.16,0.00021917,2]
[363097959,1748575846545,-2540.91,0.00021917,2]
[363097961,1748575846554,-1090.97,0.00021917,2]
[363097963,1748575846564,-3649.95,0.00021917,2]
[363097965,1748575846573,-420.0,0.00021917,2]
[363097967,1748575846583,-420.0,0.00021917,2]
[363097969,1748575846593,-641.95,0.00021917,2]
[363097971,1748575846603,-1745.31,0.00021917,2]
[363097973,1748575846612,-420.0,0.00021917,2]
[363097975,1748575846622,-3849.52,0.00021917,2]
[363097978,1748575846632,-4760.48,0.00021917,2]
[363097980,1748575846642,-500.49,0.00021917,2]
[363097982,1748575846651,-420.0,0.00021917,2]
[363097984,1748575846661,-1085.25,0.00021917,2]
[363097985,1748575846670,-3468.15,0.00021917,2]
[363097987,1748575846679,-420.0,0.00021917,2]
[363097990,1748575846689,-1507.18,0.00021917,2]
[363097992,1748575846699,-1123.03,0.00021917,2]
[363097994,1748575846709,-5505.16,0.00021917,2]
[363097996,1748575846723,-420.0,0.00021917,2]
[363097997,1748575846738,-1212.53,0.00021917,2]
[363098000,1748575846753,-590.83,0.00021917,2]
[363098002,1748575846763,-3126.05,0.00021917,2]
[363098004,1748575846772,-420.0,0.00021917,2]
[363098007,1748575846782,-939.27,0.00021917,2]
[363098010,1748575846791,-13432.71,0.00021917,2]
[363098013,1748575846801,-641.54,0.00021917,2]
[363098016,1748575846811,-1355.79,0.00021917,2]
[363098019,1748575846825,-207.32,0.00021917,2]
[363098021,1748575846834,-1514.15,0.00021917,2]
[363098023,1748575846844,-420.0,0.00021917,2]
[363098025,1748575846854,-420.0,0.00021917,2]
[363098027,1748575846863,-1048.42,0.00021917,2]
[363098029,1748575846873,-476.44,0.00021917,2]
[363098031,1748575846886,-696.2,0.00021917,2]
[363098033,1748575846896,-420.0,0.00021917,2]
[363098036,1748575846905,-2712.57,0.00021917,2]
[363098038,1748575846915,-980.92,0.00021917,2]
[363098040,1748575846925,-1249.64,0.00021917,2]
[363098042,1748575846934,-422.98,0.00021917,2]
[363098044,1748575846944,-420.0,0.00021917,2]
[363098046,1748575846954,-420.0,0.00021917,2]
[363098048,1748575846965,-14166.53,0.00021917,2]
[363098050,1748575846975,-518.42,0.00021917,2]
[363098051,1748575846985,-3223.9,0.00021917,2]
[363098052,1748575846995,-930.82,0.00021917,2]
[363098054,1748575847005,-420.0,0.00021917,2]
[363098056,1748575847015,-420.0,0.00021917,2]
[363098058,1748575847025,-686.36,0.00021917,2]
[363098060,1748575847036,-6828.83,0.00021917,2]
[363098062,1748575847046,-475.99,0.00021917,2]
[363098064,1748575847056,-587.32,0.00021917,2]
[363098066,1748575847066,-1384.36,0.00021917,2]
[363098068,1748575847076,-638.39,0.00021917,2]
[363098070,1748575847086,-420.0,0.00021917,2]
[363098072,1748575847095,-420.0,0.00021917,2]
[363098074,1748575847105,-2509.28,0.00021917,2]
[363098076,1748575847115,-11277.7,0.00021917,2]
[363098078,1748575847126,-8336.53,0.00021917,2]
[363098079,1748575847136,-1104.13,0.00021917,2]
[363098080,1748575847146,-420.0,0.00021917,2]
[363098081,1748575847156,-996.38,0.00021917,2]
[363098082,1748575847166,-420.0,0.00021917,2]
[363098083,1748575847175,-53029.33449965,0.00021917,2]
[363098104,1748575847713,-1122.9312622,0.00021917,2]
[363098105,1748575847740,700.0,0.00017807,2]
[363098106,1748575847764,-4945.17515115,0.00021917,2]
[363098107,1748575847776,-628.44825,0.00021917,2]
[363098113,1748575848382,200.0,0.00018903,2]
[363098115,1748575848403,213.7193152,0.00018903,2]
[363098116,1748575848425,286.2806848,0.00018903,2]
[363098117,1748575848601,-191.0,0.00019998,2]
[363098118,1748575848611,-1297.87600022,0.00021917,2]
[363098119,1748575848623,-58526.43669991,0.00021917,2]